bitfinex/quotes_ETHUSD_20241108
["timestamp","ask_amount","ask_price","bid_price","bid_amount"]
[1731032708484,0.01,2903.4,2902.3,0.85569999]
[1731032708860,0.01,2903.4,2902.3,0.7868]
[1731032711413,0.8311,2903.4,2902.3,0.7868]
[1731032712068,0.01938841,2903.2,2902.3,0.7868]
[1731032713104,0.00938841,2902.5,2902.3,0.7868]
[1731032713262,0.00938841,2902.5,2902.2,0.1345844]
[1731032713682,0.01,2902.4,2902.2,0.1345844]
[1731032715699,0.71787074,2902.7,2902.2,0.1345844]
[1731032715999,0.00938841,2902.6,2902.3,0.7594]
[1731032719517,0.01938841,2902.4,2902.2,0.1345844]
[1731032721095,0.00938841,2902.4,2902.2,0.1345844]
[1731032721501,0.01938841,2902.4,2902.2,0.1345844]
[1731032725231,0.00938841,2902.6,2902.2,0.1345844]
[1731032725529,0.01,2902.4,2902.2,0.1345844]
[1731032725897,0.01938841,2902.4,2902.2,0.1345844]
[1731032729109,2.58920004,2902.3,2902.2,0.1345844]
[1731032729434,5.79710694,2902.3,2902.2,0.1345844]
[1731032729614,7.02690698,2902.3,2902.2,0.1345844]
[1731032730299,6.66678902,2902.3,2902.2,0.1345844]
[1731032730495,1.07758898,2902.3,2902.2,0.1345844]
[1731032730702,1.22980004,2902.3,2902.2,0.1345844]
[1731032730940,0.01938841,2902.4,2902.2,0.1345844]
[1731032731516,0.71824151,2903.0,2902.3,0.8176]
[1731032731825,3.0051963,2903.4,2902.2,0.1345844]
[1731032731826,0.72762992,2903.5,2902.5,0.8176]
[1731032732036,1.44663618,2903.6,2902.4,2.73389581]
[1731032732037,0.3690472,2903.6,2902.7,0.8176]
[1731032732361,0.00938841,2903.4,2902.7,0.8176]
[1731032732717,0.01938841,2903.6,2902.7,0.8176]
[1731032737120,0.01,2903.6,2902.7,0.8176]
[1731032738740,0.73762992,2904.0,2902.8,0.88168991]
[1731032738928,0.01,2904.0,2903.0,3.47779036]
[1731032739127,0.01,2904.0,2903.1,0.8128]
[1731032739347,0.01,2904.0,2903.0,2.66499036]
[1731032739551,0.73762992,2904.5,2903.3,0.8128]
[1731032739754,0.73762992,2904.5,2903.5,0.8128]
[1731032739755,0.00938841,2904.5,2903.5,0.8128]
[1731032740364,1.07758898,2904.9,2903.7,0.8128]
[1731032740365,0.01,2904.9,2903.7,0.8128]
[1731032740574,0.71824151,2905.2,2903.9,3.47779036]
[1731032740575,0.00938841,2905.2,2903.9,3.47779036]
[1731032740774,0.72762992,2905.7,2904.5,2.66499036]
[1731032740935,0.00938841,2905.3,2904.7,0.8128]
[1731032741259,0.00938841,2905.3,2903.9,0.8063]
[1731032741260,0.01938841,2904.9,2903.9,0.8063]
[1731032742163,0.01,2904.9,2903.9,0.8063]
[1731032742366,0.01938841,2904.9,2903.9,0.8063]
[1731032743448,0.01938841,2905.1,2904.0,0.06886216]
[1731032743638,0.01938841,2905.1,2904.1,0.8126]
[1731032743858,0.01,2905.1,2904.3,0.8126]
[1731032744040,0.01,2905.3,2904.3,0.8126]
[1731032744246,0.00938841,2905.9,2904.8,2.66499036]
[1731032744440,0.00938841,2906.1,2905.1,2.66499036]
[1731032744680,0.00938841,2905.9,2905.3,0.7865]
[1731032744866,0.00938841,2905.6,2904.5,0.7865]
[1731032745179,0.00938841,2905.3,2904.5,0.7865]
[1731032745385,0.00938841,2905.1,2904.5,0.7865]
[1731032745680,0.01938841,2905.4,2904.6,0.06885623]
[1731032745977,0.00938841,2905.4,2904.6,0.06885623]
[1731032746298,0.01938841,2905.4,2904.5,0.7865]
[1731032747681,0.00938841,2905.2,2904.5,0.7865]
[1731032748305,0.00938841,2904.9,2904.5,0.7865]
[1731032748596,0.00938841,2904.9,2903.9,0.7865]
[1731032749062,0.00938841,2904.9,2904.0,2.73385242]
[1731032749266,0.00938841,2904.9,2904.1,0.35203524]
[1731032750678,0.00938841,2904.9,2903.9,0.7865]
[1731032750875,0.00938841,2904.7,2903.9,0.7865]
[1731032751209,0.00938841,2904.7,2902.9,3.35466803]
[1731032751210,0.01,2904.4,2903.2,0.7981]
[1731032751362,0.01,2904.4,2903.3,0.34630904]
[1731032752166,0.00938841,2904.3,2903.3,0.34630904]
[1731032752367,0.01,2904.2,2903.3,0.34630904]
[1731032752561,0.00938841,2904.1,2903.3,0.34630904]
[1731032752871,0.83908841,2903.9,2903.2,0.7981]
[1731032753212,0.01,2903.8,2902.6,0.8172]
[1731032753864,0.01,2903.8,2902.7,0.06888696]
[1731032754065,0.83908841,2903.9,2902.7,0.06888696]
[1731032754694,0.01938841,2903.9,2902.8,0.7587]
[1731032755404,0.00938841,2903.9,2902.8,0.7587]
[1731032755606,0.01,2903.8,2902.8,0.7587]
[1731032756177,0.01,2903.8,2902.9,0.06888699]
[1731032756668,0.01938841,2904.3,2903.0,0.7839]
[1731032756873,0.01938841,2904.3,2903.1,0.35177774]
[1731032757214,0.01938841,2904.3,2903.2,0.85277555]
[1731032757383,0.01,2904.3,2903.2,0.85277555]
[1731032757586,0.00938841,2904.5,2903.2,2.73386591]
[1731032757894,0.00938841,2904.5,2903.4,0.7839]
[1731032758093,0.8327,2904.6,2903.4,0.7839]
[1731032758612,0.01,2904.5,2903.4,0.7839]
[1731032758780,0.8327,2904.6,2903.5,0.06886798]
[1731032758979,0.8427,2904.6,2903.5,0.06886798]
[1731032759193,0.8327,2904.6,2903.5,0.06886798]
[1731032760698,0.7903,2904.9,2903.6,0.8319]
[1731032760908,0.7903,2904.9,2903.8,0.7901]
[1731032761110,0.79968841,2904.9,2903.9,0.06886019]
[1731032761311,0.01,2904.8,2903.9,0.06886019]
[1731032761513,0.01,2904.8,2903.8,0.7901]
[1731032761514,0.00938841,2904.7,2903.8,0.7901]
[1731032762302,0.00938841,2904.7,2903.9,0.06886586]
[1731032762999,0.79968841,2904.9,2903.9,0.06886586]
[1731032763402,0.7903,2904.9,2903.9,0.06886586]
[1731032763616,0.7903,2904.9,2904.0,0.35239562]
[1731032764104,0.7903,2904.9,2904.1,0.06885778]
[1731032764640,0.00938841,2905.0,2904.2,0.806]
[1731032764819,0.7557,2905.2,2904.3,0.06885777]
[1731032765004,0.00938841,2905.3,2904.3,0.06885777]
[1731032765005,0.00938841,2905.3,2904.4,0.806]
[1731032765503,0.00938841,2905.3,2904.5,0.06885037]
[1731032766038,0.7557,2905.6,2904.5,3.06885037]
[1731032766254,0.7557,2905.6,2904.6,1.35628407]
[1731032766542,0.00938841,2905.7,2904.6,1.35628407]
[1731032766739,0.01,2905.8,2904.7,0.06884117]
[1731032766931,0.01938841,2905.8,2904.7,0.06884117]
[1731032767368,0.01,2905.8,2904.7,0.06884117]
[1731032767540,0.01,2905.8,2904.6,1.35628407]
[1731032767745,2.66499036,2906.2,2904.6,1.35628407]
[1731032767746,0.812,2906.3,2905.0,2.66499036]
[1731032767925,0.812,2906.3,2905.2,0.7829]
[1731032768544,0.812,2906.3,2905.3,0.06882812]
[1731032768749,0.812,2906.3,2905.2,0.7829]
[1731032772152,0.00938841,2906.0,2905.2,0.7829]
[1731032772356,0.82138841,2906.3,2905.2,0.7829]
[1731032772520,0.00938841,2906.0,2905.2,0.7829]
[1731032772854,0.01938841,2906.2,2905.2,0.7829]
[1731032773076,0.812,2906.1,2904.9,0.7829]
[1731032773273,0.00938841,2905.6,2904.3,0.95596563]
[1731032773570,0.01938841,2905.0,2904.0,0.7829]
[1731032773775,0.00938841,2905.0,2904.0,0.7829]
[1731032773919,0.01938841,2905.0,2904.0,0.7829]
[1731032774123,0.01,2905.0,2904.1,0.06885987]
[1731032774325,0.812,2905.1,2904.1,0.06885987]
[1731032774763,0.812,2905.1,2904.0,0.7829]
[1731032775342,0.812,2905.1,2904.1,0.37829]
[1731032777030,0.00938841,2904.9,2904.1,0.37829]
[1731032777230,0.00938841,2904.9,2903.7,0.8064]
[1731032778451,0.7944,2904.8,2903.7,0.8064]
[1731032780223,0.00938841,2904.7,2903.2,2.66499036]
[1731032780457,0.7604,2904.4,2903.3,0.8061]
[1731032781233,0.7604,2904.4,2903.4,0.34710904]
[1731032782272,0.7604,2904.4,2903.5,0.06887128]
[1731032782430,0.7604,2904.4,2903.4,0.34710904]
[1731032784258,0.7604,2904.4,2903.5,0.06887129]
[1731032784669,0.7604,2904.4,2903.4,0.34710904]
[1731032784842,0.7604,2904.4,2903.5,0.4153209]
[1731032785044,0.7604,2904.4,2903.4,0.34710904]
[1731032785045,0.01938841,2904.1,2903.4,0.34710904]
[1731032785238,0.00938841,2903.9,2902.4,0.8181]
[1731032785431,0.7885,2903.6,2902.4,0.8181]
[1731032785773,0.7885,2903.6,2901.9,2.66499036]
[1731032785774,0.7985,2903.4,2902.1,0.8181]
[1731032787553,0.00938841,2903.3,2902.1,0.8181]
[1731032787756,0.7925,2903.2,2902.1,0.8181]
[1731032788072,0.7925,2903.2,2901.8,0.8134]
[1731032788230,0.7925,2903.2,2901.9,0.06890199]
[1731032791249,0.7925,2903.2,2901.9,0.06890202]
[1731032791974,0.7925,2903.2,2901.8,0.8134]
[1731032792689,0.7925,2903.2,2901.9,0.06890203]
[1731032792886,0.7925,2903.2,2901.9,2.73389239]
[1731032793186,0.7925,2903.2,2902.0,3.0]
[1731032793348,0.7675,2903.0,2901.8,0.8134]
[1731032794085,0.7675,2902.8,2901.8,0.8134]
[1731032794451,0.7675,2902.8,2901.9,0.06890946]
[1731032795166,0.7675,2902.8,2901.8,0.8134]
[1731032795373,0.7675,2902.8,2901.9,0.06890942]
[1731032795976,0.7675,2902.8,2901.8,0.8134]
[1731032796383,0.7675,2902.8,2901.9,0.0689094]
[1731032796567,0.7675,2902.8,2901.9,2.73389976]
[1731032797486,0.7675,2902.8,2902.0,3.0]
[1731032797692,2.66499036,2903.8,2902.4,0.8232]
[1731032797693,0.77318841,2903.5,2902.4,0.8232]
[1731032798985,0.77318841,2903.5,2902.5,0.06889303]
[1731032799288,0.77318841,2903.5,2902.4,0.8232]
[1731032799669,0.00938841,2903.1,2902.2,0.44804284]
[1731032799867,0.8293,2903.0,2902.2,0.44804284]
[1731032800097,0.8293,2903.0,2902.2,0.1345844]
[1731032801594,0.8393,2903.0,2902.2,0.1345844]
[1731032801769,0.83078841,2902.9,2902.2,0.1345844]
[1731032802162,0.00938841,2902.6,2902.2,0.1345844]
[1731032802497,0.757,2902.3,2902.2,0.1345844]
[1731032802990,0.767,2902.3,2902.2,0.1345844]
[1731032806380,0.77638841,2902.3,2902.2,0.1345844]
[1731032810698,0.767,2902.3,2902.2,0.1345844]
[1731032810960,0.757,2902.3,2902.2,0.1345844]
[1731032811993,0.76638841,2902.3,2902.2,0.1345844]
[1731032813882,0.757,2902.3,2902.2,0.1345844]
[1731032814094,0.76638841,2902.3,2902.2,0.1345844]
[1731032814525,0.757,2902.3,2902.2,0.1345844]
[1731032818482,0.76638841,2902.3,2902.2,0.1345844]
[1731032819097,0.77638841,2902.3,2902.2,0.1345844]
[1731032819437,1.15502725,2902.3,2902.2,0.1345844]
[1731032820315,0.77738841,2902.3,2902.2,0.1345844]
[1731032822234,3.99237877,2902.3,2902.2,0.1345844]
[1731032822544,0.77738841,2902.3,2902.2,0.1345844]
[1731032824932,7.00237877,2902.3,2902.2,0.1345844]
[1731032826724,7.01237877,2902.3,2902.2,0.1345844]
[1731032826947,7.79327099,2902.3,2902.2,0.1345844]
[1731032827436,7.78327099,2902.3,2902.2,0.1345844]
[1731032829324,7.78327099,2902.3,2902.2,1e-08]
[1731032829638,0.01,2901.0,2900.8,0.75550001]
[1731032830352,0.01938841,2902.4,2900.9,3.28393746]
[1731032830499,0.01938841,2902.4,2901.0,3.32839375]
[1731032830500,0.01,2902.3,2901.0,3.32839375]
[1731032832638,0.01,2902.3,2901.1,0.7968]
[1731032834048,0.00938841,2901.7,2901.1,0.7968]
[1731032836229,0.00938841,2901.5,2901.1,0.7968]
[1731032839272,0.00938841,2901.5,2900.6,0.8208]
[1731032839481,0.00938841,2901.3,2900.6,0.8208]
[1731032839837,0.01,2901.1,2900.6,0.8208]
[1731032840656,0.01938841,2901.3,2900.6,0.8208]
[1731032842882,0.79788841,2902.1,2900.8,0.8208]
[1731032843064,0.01938841,2902.1,2901.0,0.8208]
[1731032843272,0.01938841,2902.3,2901.1,0.889726]
[1731032844144,0.01938841,2902.3,2901.1,0.8208]
[1731032844339,0.01938841,2902.3,2901.3,0.7768]
[1731032846077,0.00938841,2902.1,2901.3,0.7768]
[1731032846540,0.01,2902.0,2901.3,0.7768]
[1731032847167,0.00938841,2901.8,2901.3,0.7768]
[1731032847371,0.00024416,2901.8,2901.3,0.7768]
[1731032848982,0.01024416,2901.8,2901.3,0.7768]
[1731032849277,0.01,2901.8,2900.3,0.7978]
[1731032849577,0.01,2901.4,2900.3,0.7978]
[1731032849942,0.56,2901.4,2900.3,0.7978]
[1731032850147,0.01,2901.0,2900.3,0.7978]
[1731032850778,0.01,2901.1,2900.3,0.7978]
[1731032850940,0.71824151,2901.5,2900.4,0.06895021]
[1731032851146,0.01,2901.9,2900.6,3.28040708]
[1731032851342,0.01,2901.7,2900.7,0.8037]
[1731032851786,0.01,2901.9,2900.7,0.8037]
[1731032851943,0.01,2901.9,2900.6,3.28040708]
[1731032852144,0.01,2902.1,2900.8,0.8162]
[1731032852344,1.47044151,2902.3,2900.7,3.0]
[1731032852345,0.01,2901.9,2901.0,0.8162]
[1731032852953,0.01,2902.1,2901.0,0.8162]
[1731032853156,0.7622,2902.3,2901.0,0.8162]
[1731032853353,0.01,2902.1,2901.0,0.8162]
[1731032853787,0.01,2901.9,2901.0,0.8162]
[1731032856786,0.01,2901.7,2901.0,0.8162]
[1731032864882,0.01,2901.4,2901.0,0.8162]
[1731032865095,0.01,2901.7,2901.0,0.8162]
[1731032866487,3.71824151,2902.0,2901.0,0.8162]
[1731032866488,0.01,2901.9,2901.0,0.8162]
[1731032866863,0.01,2901.7,2901.0,0.8162]
[1731032867052,0.01,2901.9,2901.0,0.8162]
[1731032867257,0.01,2901.7,2901.0,0.8162]
[1731032869076,0.7959,2901.7,2901.0,0.8162]
[1731032869273,0.01,2901.4,2900.1,0.7603]
[1731032869475,0.01,2901.4,2900.3,0.7603]
[1731032872799,0.01,2900.9,2900.3,0.7603]
[1731032873301,0.7859,2900.8,2900.0,20.0]
[1731032873469,0.01,2900.7,2900.0,20.0]
[1731032873675,0.01,2900.7,2900.0,22.07603]
[1731032874197,0.01,2900.5,2900.0,20.0]
[1731032875896,0.01,2900.3,2900.0,20.0]
[1731032876205,0.01,2900.5,2900.1,0.7588]
[1731032876417,0.8094,2901.3,2900.1,0.7588]
[1731032876418,0.01,2900.8,2900.1,0.7588]
[1731032877034,0.7674,2900.7,2900.1,0.7588]
[1731032877334,0.01,2900.3,2900.1,0.7588]
[1731032878600,0.01,2900.3,2900.0,20.0]
[1731032878799,0.01,2900.1,2900.0,20.0]
[1731032880019,0.01,2900.1,2900.0,19.6484375]
[1731032880020,4.3274,2900.1,2900.0,19.6484375]
[1731032880232,5.82779845,2900.1,2900.0,19.6484375]
[1731032880435,6.18654956,2900.1,2900.0,19.6484375]
[1731032880748,5.2681668,2900.1,2900.0,19.6484375]
[1731032881050,0.77680364,2900.1,2900.0,19.6484375]
[1731032883445,0.00940364,2900.1,2900.0,19.6484375]
[1731032884704,3.4734279,2900.4,2900.0,19.6484375]
[1731032885008,0.00940364,2900.5,2900.1,0.7657]
[1731032886508,0.00940364,2900.5,2900.0,19.6484375]
[1731032887429,0.00940364,2900.5,2900.0,21.69312125]
[1731032887632,0.00940364,2900.4,2900.0,21.69312125]
[1731032887804,0.00940364,2900.4,2900.0,19.6484375]
[1731032889157,0.00940364,2900.9,2900.1,0.7805]
[1731032889325,1.44770694,2901.7,2900.1,0.7805]
[1731032889326,0.00940364,2900.7,2900.1,0.7805]
[1731032889645,3.87103777,2901.4,2900.0,19.6484375]
[1731032889646,0.00940364,2900.4,2900.0,19.6484375]
[1731032890630,0.00940364,2900.6,2900.0,19.6484375]
[1731032890831,0.00940364,2900.6,2900.1,0.7707]
[1731032894345,0.00940364,2900.5,2900.1,0.7707]
[1731032894551,0.00940364,2900.5,2900.2,2.04191375]
[1731032896459,0.00940364,2900.5,2900.1,0.7707]
[1731032897132,0.00940364,2900.7,2900.1,0.7707]
[1731032897346,0.00940364,2900.5,2900.1,0.7707]
[1731032899851,0.00940364,2900.5,2900.2,0.0689577]
[1731032900027,0.00940364,2900.5,2900.1,0.7707]
[1731032900225,0.00940364,2900.5,2900.0,19.6484375]
[1731032900226,0.00940364,2901.0,2900.3,0.8038]
[1731032900537,0.00940364,2900.5,2900.3,0.8038]
[1731032903351,0.00940364,2901.0,2900.3,0.8038]
[1731032903569,0.00940364,2900.5,2900.3,0.8038]
[1731032903857,0.00940364,2900.5,2900.2,2.04191375]
[1731032903858,0.79550364,2901.7,2900.5,0.8038]
[1731032904020,0.00940364,2901.3,2900.6,0.06893952]
[1731032904221,0.00940364,2901.3,2900.7,0.8283]
[1731032905059,0.00940364,2901.1,2900.7,0.8283]
[1731032905360,0.00940364,2900.8,2900.1,0.8283]
[1731032905670,0.00940364,2900.8,2900.2,2.04767375]
[1731032905961,0.00940364,2901.5,2900.3,0.87405522]
[1731032906175,0.00940364,2901.3,2900.3,0.87405522]
[1731032906331,0.00940364,2901.5,2900.3,0.87403926]
[1731032906670,0.00940364,2901.7,2900.5,0.8051]
[1731032906826,0.00940364,2902.1,2900.7,3.83785584]
[1731032907150,0.00940364,2901.9,2901.1,0.8281]
[1731032907324,0.00940364,2901.9,2901.1,3.49326807]
[1731032907526,0.00940364,2902.3,2901.4,2.66516807]
[1731032907727,0.00940364,2902.8,2901.6,0.8281]
[1731032907926,0.00940364,2902.4,2901.8,0.8281]
[1731032909361,0.00940364,2903.0,2902.0,0.8281]
[1731032909561,0.00940364,2903.0,2902.1,0.8281]
[1731032909931,0.00940364,2902.7,2902.1,0.8281]
[1731032910129,0.00940364,2902.9,2902.1,1.17742681]
[1731032910831,0.00940364,2903.5,2902.3,2.66516807]
[1731032911128,0.00940364,2903.2,2902.4,0.87070185]
[1731032911447,0.00940364,2903.2,2902.3,2.66516807]
[1731032911654,0.00940364,2903.2,2902.4,0.8029]
[1731032911827,0.00940364,2903.5,2902.5,0.8029]
[1731032912025,0.00940364,2903.5,2902.7,0.8029]
[1731032912229,0.00940364,2903.8,2902.9,0.8029]
[1731032912451,0.00940364,2903.4,2902.9,0.8029]
[1731032912688,0.00940364,2903.4,2902.5,0.8029]
[1731032912689,0.00940364,2903.1,2902.5,0.8029]
[1731032912893,0.00940364,2902.7,2902.2,0.8029]
[1731032913692,0.00940364,2903.3,2902.3,0.0689071]
[1731032913861,0.00940364,2903.3,2902.4,0.8029]
[1731032914069,0.00940364,2903.3,2902.6,0.813]
[1731032914371,0.00940364,2903.1,2902.6,0.813]
[1731032914962,0.00940364,2903.3,2902.6,0.813]
[1731032915167,0.00940364,2903.1,2902.6,0.813]
[1731032917955,0.00940364,2903.1,2902.1,0.7843]
[1731032918259,0.79530364,2902.8,2902.1,0.7843]
[1731032918663,0.7859,2902.2,2900.8,3.27883448]
[1731032918976,0.7859,2902.2,2900.9,0.7843]
[1731032919163,0.79530364,2902.2,2901.0,0.40631345]
[1731032919366,0.00940364,2902.0,2901.1,0.06892436]
[1731032919678,0.79530364,2902.2,2901.0,0.40631345]
[1731032919851,0.00940364,2902.0,2901.0,0.40631345]
[1731032920265,0.7859,2901.9,2900.9,0.7843]
[1731032920464,0.00940364,2901.4,2900.9,0.7843]
[1731032921463,0.7859,2901.3,2900.1,0.7843]
[1731032921676,0.00940364,2900.9,2900.1,0.7843]
[1731032922866,0.00940364,2900.5,2900.0,19.6484375]
[1731032938627,0.761,2900.4,2900.0,19.6484375]
[1731032938832,0.77040364,2900.1,2900.0,19.6484375]
[1731032939129,1.147444,2900.1,2900.0,19.6484375]
[1731032939638,4.717444,2900.1,2900.0,19.30305481]
[1731032939822,4.717444,2900.1,2900.0,17.12542366]
[1731032940130,16.957444,2900.1,2900.0,17.12542366]
[1731032941309,20.0253423,2900.1,2900.0,17.12542366]
[1731032943307,7.7853423,2900.1,2900.0,17.12542366]
[1731032943714,7.7853423,2900.1,2900.0,14.34164618]
[1731032943932,7.7853423,2900.1,2900.0,14.16343013]
[1731032945125,7.7753423,2900.1,2900.0,14.16343013]
[1731032945437,7.7853423,2900.1,2900.0,14.16343013]
[1731032946104,7.7753423,2900.1,2900.0,14.16343013]
[1731032948607,4.7653423,2900.1,2900.0,14.16343013]
[1731032948813,0.77040364,2900.1,2900.0,14.16343013]
[1731032949044,0.00940364,2900.1,2900.0,14.16343013]
[1731032949751,0.00940364,2900.3,2900.0,14.16343013]
[1731032950639,0.00940364,2900.4,2900.0,14.16343013]
[1731032950863,0.00940364,2900.4,2900.2,0.786]
[1731032951951,0.00940364,2900.2,2900.0,14.16343013]
[1731032954558,0.00799364,2900.2,2900.0,14.16343013]
[1731032954757,0.00763168,2900.2,2900.0,14.16343013]
[1731032959531,0.00763168,2900.2,2900.0,15.57977314]
[1731032960427,0.00763168,2900.2,2900.0,14.16343013]
[1731032966423,4.4490983,2900.1,2900.0,14.16343013]
[1731032966567,7.4490983,2900.1,2900.0,14.16343013]
[1731032968085,7.4590983,2900.1,2900.0,14.16343013]
[1731032968479,7.4590983,2900.1,2900.0,13.96676864]
[1731032968695,21.24789814,2900.1,2900.0,13.48426236]
[1731032968936,21.23789814,2900.1,2900.0,13.48426236]
[1731032969149,19.95869192,2900.1,2900.0,13.48426236]
[1731032970151,7.71869192,2900.1,2900.0,13.48426236]
[1731032972254,0.81959362,2900.1,2900.0,13.48426236]
[1731032972455,0.00763168,2900.2,2900.0,13.48426236]
[1731032974043,0.00763168,2900.4,2900.0,13.48426236]
[1731032975357,1.48279279,2900.5,2900.0,13.48426236]
[1731032975358,0.00763168,2900.1,2900.0,13.48426236]
[1731032976027,0.00763168,2900.1,2900.0,14.31546236]
[1731032977562,0.00763168,2900.4,2900.0,14.31546236]
[1731032977861,0.00763168,2900.1,2900.0,14.31546236]
[1731032978362,0.00763168,2900.4,2900.0,15.7470086]
[1731032979167,0.00763168,2900.4,2900.0,14.31546236]
[1731032980760,0.00763168,2900.2,2900.0,13.48426236]
[1731032981143,0.8118,2900.1,2900.0,13.48426236]
[1731032981949,0.00763168,2900.2,2900.0,13.48426236]
[1731032982965,0.42744245,2900.1,2900.0,13.48426236]
[1731032985833,0.72442447,2900.2,2900.0,13.48426236]
[1731032986066,0.00763168,2900.2,2900.0,13.48426236]
[1731032988455,0.72442447,2900.2,2900.0,13.48426236]
[1731032989084,2.07179279,2900.1,2900.0,13.48426236]
[1731032989291,4.375,2900.1,2900.0,13.48426236]
[1731032989579,2.29536511,2900.1,2900.0,13.48426236]
[1731032992570,7.08695732,2900.1,2900.0,13.48426236]
[1731032992950,5.29536511,2900.1,2900.0,13.48426236]
[1731032993169,7.08690389,2900.1,2900.0,13.48426236]
[1731032993886,19.32690389,2900.1,2900.0,13.48426236]
[1731032994182,17.53536511,2900.1,2900.0,13.48426236]
[1731032994762,19.32660908,2900.1,2900.0,13.48426236]
[1731032995152,18.39844828,2900.1,2900.0,13.48426236]
[1731032995363,16.96536511,2900.1,2900.0,13.48426236]
[1731032995578,18.04009989,2900.1,2900.0,13.48426236]
[1731032996451,16.96536511,2900.1,2900.0,13.48426236]
[1731032996681,18.39844828,2900.1,2900.0,13.48426236]
[1731032996882,16.96536511,2900.1,2900.0,13.48426236]
[1731032997275,18.39844828,2900.1,2900.0,13.48426236]
[1731032998591,16.96536511,2900.1,2900.0,13.48426236]
[1731032998756,18.39844828,2900.1,2900.0,13.48426236]
[1731032999679,6.15844828,2900.1,2900.0,13.48426236]
[1731033000098,0.92036511,2900.1,2900.0,13.48426236]
[1731033000393,4.99551938,2900.1,2900.0,13.48426236]
[1731033000552,1.99551938,2900.1,2900.0,13.48426236]
[1731033000749,0.71685998,2900.1,2900.0,13.48426236]
[1731033000987,0.72449166,2900.2,2900.0,13.48426236]
[1731033001489,0.00763168,2900.2,2900.0,13.48426236]
[1731033001689,2.67000968,2900.1,2900.0,13.48426236]
[1731033001890,3.80328979,2900.1,2900.0,13.48426236]
[1731033002127,6.08642981,2900.1,2900.0,13.48426236]
[1731033002258,7.16204528,2900.1,2900.0,13.48426236]
[1731033002575,6.08642981,2900.1,2900.0,13.48426236]
[1731033002784,6.80359808,2900.1,2900.0,13.48426236]
[1731033002957,7.16204528,2900.1,2900.0,13.48426236]
[1731033003998,0.71727137,2900.1,2900.0,14.31076236]
[1731033004207,0.00763168,2900.2,2900.0,14.31076236]
[1731033004403,3.43040968,2900.1,2900.0,13.48426236]
[1731033004560,4.50602515,2900.1,2900.0,13.48426236]
[1731033004761,3.43040968,2900.1,2900.0,13.48426236]
[1731033004959,5.74794289,2900.1,2900.0,13.48426236]
[1731033005160,3.95546191,2900.1,2900.0,13.48426236]
[1731033005391,8.74876258,2900.1,2900.0,13.48426236]
[1731033005570,6.95546191,2900.1,2900.0,13.48426236]
[1731033005784,8.3905577,2900.1,2900.0,13.48426236]
[1731033005974,6.95546191,2900.1,2900.0,13.48426236]
[1731033006346,8.39112131,2900.1,2900.0,13.48426236]
[1731033006468,7.10566908,2900.1,2900.0,13.48426236]
[1731033006658,4.08484645,2900.2,2900.0,13.48426236]
[1731033006861,0.71816604,2900.1,2900.0,13.48426236]
[1731033007453,1.08484645,2900.2,2900.0,13.48426236]
[1731033007855,0.71821648,2900.1,2900.0,13.48426236]
[1731033008458,0.72584816,2900.2,2900.0,14.9153386]
[1731033008654,0.72584816,2900.2,2900.0,13.48426236]
[1731033008886,0.71821648,2900.1,2900.0,13.48426236]
[1731033009278,0.72584816,2900.2,2900.0,13.48426236]
[1731033009795,0.71821648,2900.4,2900.1,0.7936]
[1731033010117,0.00763168,2900.3,2900.1,0.7936]
[1731033010782,0.00763168,2900.5,2900.1,0.7936]
[1731033011516,1.08484645,2900.7,2900.1,0.7936]
[1731033011684,1.08484645,2900.7,2900.2,0.06895781]
[1731033011685,0.00763168,2900.7,2900.2,0.06895781]
[1731033011884,1.07721477,2900.9,2900.2,0.06895781]
[1731033011885,0.00763168,2900.9,2900.3,0.7613]
[1731033013026,0.00763168,2900.9,2900.5,0.7613]
[1731033013196,0.00763168,2900.7,2900.0,13.48426236]
[1731033013378,0.00763168,2900.7,2900.1,0.7613]
[1731033013578,0.00763168,2900.5,2900.1,0.7613]
[1731033013783,0.00763168,2900.5,2900.1,2.18585624]
[1731033014083,0.00763168,2900.8,2900.2,0.7613]
[1731033014824,0.00763168,2900.8,2900.4,0.7613]
[1731033015178,0.00763168,2901.0,2900.4,0.7613]
[1731033015817,0.00763168,2901.2,2900.5,0.06894779]
[1731033016018,0.00763168,2901.2,2900.6,0.7574]
[1731033016813,0.00763168,2901.4,2900.6,0.7574]
[1731033017331,0.00763168,2901.4,2900.8,0.7574]
[1731033018098,0.00763168,2901.6,2900.8,0.7574]
[1731033018636,0.00763168,2901.6,2901.0,0.7574]
[1731033019939,0.00763168,2901.6,2901.1,0.06893092]
[1731033020136,0.00763168,2902.4,2901.3,0.55]
[1731033020351,0.00763168,2902.4,2901.4,0.7574]
[1731033021199,0.00763168,2902.9,2901.8,0.7574]
[1731033021939,0.00763168,2902.7,2901.8,0.7574]
[1731033022230,0.00763168,2902.9,2901.8,0.7574]
[1731033022433,0.00763168,2902.9,2901.9,0.83410362]
[1731033023236,0.00763168,2902.9,2901.9,0.7652]
[1731033023938,0.00763168,2902.9,2901.9,0.83410361]
[1731033024406,0.00763168,2903.1,2902.1,0.8058]
[1731033024608,0.00763168,2903.1,2902.3,0.8058]
[1731033024837,0.00763168,2903.1,2902.5,0.8058]
[1731033025564,0.00763168,2903.3,2902.5,0.8058]
[1731033025922,0.00763168,2903.3,2902.2,0.00975584]
[1731033025923,0.00763168,2903.3,2902.6,0.06888915]
[1731033026151,0.00763168,2904.0,2902.9,0.7795]
[1731033026466,0.05945078,2905.0,2902.5,2.672378]
[1731033026467,0.00763168,2904.2,2903.2,0.55]
[1731033026670,0.00763168,2904.6,2903.4,0.55975584]
[1731033026817,0.00763168,2904.4,2903.6,0.7814]
[1731033027269,0.00763168,2904.4,2903.6,0.85026614]
[1731033027759,0.00763168,2904.4,2903.6,0.7814]
[1731033028122,3.44204136,2904.4,2903.6,0.7814]
[1731033028322,3.44204136,2904.4,2902.5,0.7814]
[1731033028323,0.00763168,2903.8,2902.5,0.7814]
[1731033028520,0.00763168,2903.5,2902.5,0.7814]
[1731033028723,0.00763168,2903.5,2901.9,0.00236832]
[1731033028724,0.00763168,2903.1,2902.4,0.7814]
[1731033031165,0.00763168,2903.5,2902.4,0.7814]
[1731033031350,0.00763168,2903.1,2902.4,0.7814]
[1731033031723,0.7644,2903.6,2902.4,0.7814]
[1731033031724,0.00763168,2903.5,2902.4,0.7814]
[1731033032148,0.00763168,2903.5,2902.5,0.55]